fUST/lending_fUST_20250806
["ID","MTS","AMOUNT","RATE_DAILY","PERIOD"]
[377690923,1754491879103,-336.32,0.0003284,15]
[377690924,1754491879114,-500.0,0.00032876,120]
[377690925,1754491879123,-4690.4,0.00032876,120]
[377690926,1754491879133,-500.0,0.00032877,5]
[377690927,1754491879143,-500.0,0.00032877,60]
[377690928,1754491879153,-500.0,0.00032877,60]
[377690929,1754491879163,-500.0,0.00032877,60]
[377690930,1754491879172,-516.0,0.00032877,2]
[377690931,1754491879181,-109.89978343,0.00032877,2]
[377690932,1754491880484,-160.0,0.00025787,2]
[377690933,1754491880494,-250.0,0.00025873,2]
[377690934,1754491880503,-151.0,0.00025873,2]
[377690935,1754491880513,-151.0,0.00025873,2]
[377690936,1754491880523,-151.0,0.00025873,2]
[377690937,1754491880532,-151.0,0.00025873,2]
[377690938,1754491880542,-718.54665482,0.00029342,11]
[377690939,1754491880552,-718.54665482,0.00030284,13]
[377690940,1754491880562,-718.54665482,0.00031227,15]
[377690941,1754491880571,-718.54665482,0.00032169,17]
[377690942,1754491880581,-1583.93,0.00032254,120]
[377690943,1754491880590,-460.0,0.00032254,120]
[377690944,1754491880600,-1583.93,0.00032254,120]
[377690945,1754491880611,-719.6,0.00032254,120]
[377690946,1754491880622,-460.0,0.00032254,120]
[377690947,1754491880632,-460.0,0.00032254,120]
[377690948,1754491880642,-719.6,0.00032254,120]
[377690949,1754491880652,-460.0,0.00032254,120]
[377690950,1754491880663,-460.0,0.00032254,120]
[377690951,1754491880672,-460.0,0.00032254,120]
[377690952,1754491880683,-1583.93,0.00032254,120]
[377690953,1754491880692,-231.95,0.00032254,120]
[377690954,1754491880701,-719.6,0.00032254,120]
[377690955,1754491880711,-1583.93,0.00032254,120]
[377690956,1754491880720,-719.6,0.00032254,120]
[377690957,1754491880729,-1583.93,0.00032254,120]
[377690958,1754491880739,-719.6,0.00032254,120]
[377690959,1754491880749,-460.0,0.00032254,120]
[377690960,1754491880758,-460.0,0.00032254,120]
[377690961,1754491880767,-460.0,0.00032254,120]
[377690962,1754491880777,-719.6,0.00032254,120]
[377690963,1754491880787,-460.0,0.00032254,120]
[377690964,1754491880796,-460.0,0.00032254,120]
[377690965,1754491880806,-281.9466949,0.00032877,2]
[377690966,1754491880817,-500.0,0.00032877,60]
[377690967,1754491880827,-200.0,0.00032895,120]
[377690968,1754491880836,-2240.37,0.000329,7]
[377690969,1754491880846,-218.67,0.00032935,60]
[377690970,1754491880856,-200.0,0.00032952,120]
[377690971,1754491880868,-160.0,0.00033,7]
[377690972,1754491880877,-160.0,0.00033,7]
[377690973,1754491880887,-202.70819003,0.00033,21]
[377690974,1754491880897,-1000.0,0.00033,120]
[377690975,1754491880907,-500.0,0.00033,120]
[377690976,1754491880918,-160.0,0.00033,3]
[377690977,1754491880928,-160.0,0.00033,30]
[377690978,1754491880939,-500.0,0.00033,120]
[377690979,1754491880948,-384.81769203,0.00033,120]
[377690980,1754491880958,-461.26544088,0.00033,3]
[377690981,1754491880967,-160.0,0.00033,30]
[377690982,1754491880979,-312.16666667,0.00033,30]
[377690983,1754491880989,-312.16666667,0.00033,120]
[377690984,1754491880999,-216.47163855,0.00033,30]
[377690985,1754491881009,-216.47163855,0.00033,120]
[377690986,1754491881019,-527.46908335,0.00033,30]
[377690987,1754491881028,-527.46908335,0.00033,120]
[377690988,1754491881038,-231.78005385,0.00033,30]
[377690989,1754491881047,-231.78005385,0.00033,120]
[377690990,1754491881056,-160.0,0.00033,30]
[377690991,1754491881066,-160.0,0.00033,120]
[377690992,1754491881076,-12657.93264304,0.00033,30]
[377690993,1754491881086,-160.0,0.00033,30]
[377690994,1754491881095,-842.45170444,0.00033,30]
[377690995,1754491881106,-842.45170444,0.00033,120]
[377690996,1754491881116,-185.06,0.00033018,60]
[377690997,1754491881126,-218.67,0.00033035,60]
[377690998,1754491881136,-210.159744,0.0003305,60]
[377690999,1754491881146,-5000.0,0.00033058,4]
[377691000,1754491881157,-156.480839,0.00033083,20]
[377691001,1754491881167,-210.159744,0.00033083,20]
[377691002,1754491881176,-1600.0,0.00033095,5]
[377691003,1754491881186,-500.0,0.00033095,7]
[377691004,1754491881196,-3348.96461843,0.00033096,5]
[377691005,1754491881206,-3841.76,0.000331,7]
[377691006,1754491881216,-718.54665482,0.00033111,19]
[377691007,1754491881225,-218.67,0.00033135,60]
[377691008,1754491881235,-500.0,0.00033151,60]
[377691009,1754491881245,-500.0,0.00033151,60]
[377691010,1754491881255,-500.0,0.00033151,60]
[377691011,1754491881264,-516.0,0.00033151,2]
[377691012,1754491881274,-500.0,0.00033151,60]
[377691013,1754491881284,-186.55844,0.00033165,2]
[377691014,1754491881293,-218.67,0.00033235,60]
[377691015,1754491881302,-8000.0,0.00033282,3]
[377691016,1754491881312,-218.67,0.00033335,60]
[377691017,1754491881321,-2000.0,0.00033368,5]
[377691018,1754491881331,-199.24482303,0.00033425,60]
[377691019,1754491881340,-452.3268588,0.00033425,60]
[377691020,1754491881350,-168.9402422,0.00033425,60]
[377691021,1754491881359,-516.0,0.00033425,2]
[377691022,1754491881369,-500.0,0.00033425,60]
[377691023,1754491881378,-218.67,0.00033435,60]
[377691024,1754491881387,-156.480839,0.00033483,20]
[377691025,1754491881396,-210.159744,0.00033483,20]
[377691026,1754491881405,-158.882406,0.00033483,20]
[377691027,1754491881414,-201.149912,0.00033483,20]
[377691028,1754491881424,-218.67,0.00033535,60]
[377691029,1754491881434,-250.7058899,0.000336,16]
[377691030,1754491881444,-218.67,0.00033635,60]
[377691031,1754491881454,-2400.0,0.00033642,5]
[377691032,1754491881464,-500.0,0.00033643,8]
[377691033,1754491881473,-4690.4,0.00033698,120]
[377691034,1754491881483,-516.0,0.00033699,2]
[377691035,1754491881493,-505.51844708,0.00033699,60]
[377691036,1754491881502,-218.67,0.00033735,60]
[377691037,1754491881511,-9078.83,0.000338,14]
[377691038,1754491881520,-218.67,0.00033835,60]
[377691039,1754491881530,-27453.28252394,0.000339,7]
[377691040,1754491881540,-3798.13,0.000339,14]
[377691041,1754491881549,-210.159744,0.000339,60]
[377691042,1754491881558,-1906.37203509,0.00033916,5]
[377691043,1754491881569,-218.67,0.00033935,60]
[377691044,1754491881579,-191.723131,0.00033971,2]
[377691045,1754491881589,-516.0,0.00033973,2]
[377691046,1754491881601,-800.0,0.00034,120]
[377691047,1754491881610,-218.67,0.00034035,60]
[377691048,1754491881619,-718.54665482,0.00034054,21]
[377691049,1754491881630,-200.0,0.00034066,15]
[377691050,1754491881640,-200.0,0.00034066,15]
[377691051,1754491881650,-200.0,0.00034066,15]
[377691052,1754491881660,-379.0,0.00034066,15]
[377691053,1754491881669,-151.0,0.00034087,2]
[377691054,1754491881679,-1660.3,0.00034116,30]
[377691055,1754491881688,-218.67,0.00034135,60]
[377691056,1754491881698,-500.0,0.00034191,9]
[377691057,1754491881707,-2240.37,0.000342,7]
[377691058,1754491881716,-218.67,0.00034235,60]
[377691059,1754491881726,-500.0,0.00034246,120]
[377691060,1754491881735,-516.0,0.00034247,2]
[377691061,1754491881744,-200.0,0.0003425,37]
[377691062,1754491881754,-644.0,0.000343,2]
[377691063,1754491881764,-218.67,0.00034335,60]
[377691064,1754491881773,-3841.76,0.000344,7]
[377691065,1754491881783,-218.67,0.00034435,60]
[377691066,1754491881792,-554.95843152,0.000345,45]
[377691067,1754491881802,-4690.4,0.0003452,120]
[377691068,1754491881811,-516.0,0.00034521,2]
[377691069,1754491881821,-218.67,0.00034535,60]
[377691070,1754491881830,-218.67,0.00034635,60]
[377691071,1754491881840,-8000.0,0.00034688,3]
[377691072,1754491881849,-218.67,0.00034735,60]
[377691073,1754491881859,-500.0,0.00034739,10]
[377691074,1754491881869,-210.159744,0.0003475,60]
[377691075,1754491881879,-200.0,0.00034787,120]
[377691076,1754491881888,-516.0,0.00034795,2]
[377691077,1754491881898,-500.0,0.00034821,5]
[377691078,1754491881907,-218.67,0.00034835,60]
[377691079,1754491881917,-180.41807465,0.00034868,13]
[377691080,1754491881926,-3153.31464919,0.0003487,4]
[377691081,1754491881935,-505.04802497,0.00034913,13]
[377691082,1754491881945,-645.0477713,0.00034913,13]
[377691083,1754491881955,-218.67,0.00034935,60]
[377691084,1754491881964,-718.54665482,0.00034996,23]
[377691085,1754491881978,-518.18529589,0.00035,120]
[377691086,1754491881987,-160.0,0.00035,14]
[377691087,1754491881997,-616.04223669,0.00035,14]
[377691088,1754491882006,-150.0,0.00035,69]
[377691089,1754491882017,-218.67,0.00035035,60]
[377691090,1754491882027,-516.0,0.00035069,2]
[377691091,1754491882037,-9078.83,0.000351,14]
[377691092,1754491882046,-3798.13,0.000351,14]
[377691093,1754491882056,-218.67,0.00035135,60]
[377691094,1754491882066,-972.092,0.00035137,2]
[377691095,1754491882076,-636.0,0.00035137,2]
[377691096,1754491882086,-2148.0,0.00035137,2]
[377691097,1754491882095,-6000.0,0.00035182,3]
[377691098,1754491882104,-500.0,0.00035221,7]
[377691099,1754491882115,-2200.0,0.00035221,7]
[377691100,1754491882125,-218.67,0.00035235,60]
[377691101,1754491882135,-500.0,0.00035287,11]
[377691102,1754491882145,-218.67,0.00035335,60]
[377691103,1754491882155,-4690.4,0.00035342,120]
[377691104,1754491882164,-516.0,0.00035342,2]
[377691105,1754491882174,-1152.0,0.00035385,2]
[377691106,1754491882182,-218.67,0.00035435,60]
[377691107,1754491882192,-151.0,0.00035456,2]
[377691108,1754491882202,-2240.37,0.000355,7]
[377691109,1754491882212,-218.67,0.00035535,60]
[377691110,1754491882222,-245.14697,0.000356,120]
[377691111,1754491882231,-218.7215,0.000356,120]
[377691112,1754491882240,-290.29394,0.000356,120]
[377691113,1754491882251,-200.0,0.000356,120]
[377691114,1754491882260,-200.0,0.000356,120]
[377691115,1754491882270,-353.31934,0.000356,120]
[377691116,1754491882287,-156.480839,0.000356,60]
[377691117,1754491882303,-210.159744,0.000356,60]
[377691118,1754491882312,-500.0,0.00035616,120]
[377691119,1754491882322,-516.0,0.00035616,2]
[377691120,1754491882332,-218.67,0.00035635,60]
[377691121,1754491882342,-3841.76,0.000357,7]
[377691122,1754491882352,-218.67,0.00035735,60]
[377691123,1754491882363,-210.159744,0.00035745,2]
[377691124,1754491882373,-500.0,0.00035835,12]
[377691125,1754491882383,-218.67,0.00035835,60]
[377691126,1754491882393,-516.0,0.0003589,2]
[377691127,1754491882403,-218.67,0.00035935,60]
[377691128,1754491882413,-718.54665482,0.00035938,25]
[377691129,1754491882423,-1770.62056132,0.00036,2]
[377691130,1754491882433,-200.0,0.00036,14]
[377691131,1754491882443,-600.0,0.00036,120]
[377691132,1754491882452,-500.0,0.00036,120]
[377691133,1754491882462,-218.67,0.00036035,60]
[377691134,1754491882471,-218.67,0.00036135,60]
[377691135,1754491882481,-4690.4,0.00036164,120]
[377691136,1754491882492,-516.0,0.00036164,2]
[377691137,1754491882502,-6000.0,0.00036184,3]
[377691138,1754491882511,-202.61272717,0.0003621,2]
[377691139,1754491882521,-218.67,0.00036235,60]
[377691140,1754491882531,-263.54172139,0.0003624,2]
[377691141,1754491882541,-218.67,0.00036335,60]
[377691142,1754491882550,-500.0,0.00036383,13]
[377691143,1754491882560,-9078.83,0.000364,14]
[377691144,1754491882570,-214.0,0.0003643,43]
[377691145,1754491882580,-218.67,0.00036435,60]
[377691146,1754491882589,-535.0,0.00036438,2]
[377691147,1754491882600,-458.7972542,0.000365,120]
[377691148,1754491882611,-218.67,0.00036535,60]
[377691149,1754491882620,-210.159744,0.00036585,3]
[377691150,1754491882632,-218.67,0.00036635,60]
[377691151,1754491882642,-500.0,0.00036653,5]
[377691152,1754491882652,-218.67,0.00036735,60]
[377691153,1754491882662,-210.159744,0.00036771,5]
[377691154,1754491882672,-877.5,0.000368,30]
[377691155,1754491882681,-151.0,0.00036825,2]
[377691156,1754491882691,-218.67,0.00036835,60]
[377691157,1754491882703,-718.54665482,0.0003688,27]
[377691158,1754491882713,-5075.79666177,0.00036896,60]
[377691159,1754491882724,-1660.3,0.00036904,30]
[377691160,1754491882734,-500.0,0.00036931,14]
[377691161,1754491882744,-218.67,0.00036935,60]
[377691162,1754491882754,-200.0,0.00036945,120]
[377691163,1754491882764,-200.0,0.00036947,120]
[377691164,1754491882774,-500.0,0.00036986,120]
[377691165,1754491882784,-4690.4,0.00036986,120]
[377691166,1754491882794,-200.0,0.00037,14]
[377691167,1754491882803,-153.0,0.00037,120]
[377691168,1754491882813,-200.0,0.00037017,120]
[377691169,1754491882823,-218.67,0.00037035,60]
[377691170,1754491882832,-200.0,0.00037077,120]
[377691171,1754491882842,-218.67,0.00037135,60]
[377691172,1754491882852,-218.67,0.00037235,60]
[377691173,1754491882863,-218.67,0.00037335,60]
[377691174,1754491882873,-200.0,0.00037345,15]
[377691175,1754491882883,-200.0,0.00037345,15]
[377691176,1754491882893,-200.0,0.00037345,15]
[377691177,1754491882903,-200.0,0.00037345,15]
[377691178,1754491882913,-200.0,0.00037345,15]
[377691179,1754491882922,-371.0,0.00037345,15]
[377691180,1754491882933,-218.67,0.00037435,60]
[377691181,1754491882945,-500.0,0.00037479,15]
[377691182,1754491882955,-218.67,0.00037535,60]
[377691183,1754491882965,-218.7215,0.000376,120]
[377691184,1754491882975,-200.0,0.000376,120]
[377691185,1754491882987,-218.67,0.00037635,60]
[377691186,1754491882997,-861.6570332,0.00037691,30]
[377691187,1754491883006,-430.8285166,0.00037691,30]
[377691188,1754491883015,-430.8285166,0.00037694,30]
[377691189,1754491883025,-430.8285166,0.00037694,30]
[377691190,1754491883034,-430.8285166,0.00037694,30]
[377691191,1754491883044,-430.8285166,0.00037694,30]
[377691192,1754491883054,-914.3517996,0.00037694,30]
[377691193,1754491883063,-218.67,0.00037735,60]
[377691194,1754491883073,-4690.4,0.00037808,120]
[377691195,1754491883083,-718.54665482,0.00037823,30]
[377691196,1754491883092,-153.0,0.00037828,30]
[377691197,1754491883102,-292.9962021,0.00037828,30]
[377691198,1754491883112,-591.0251194,0.00037828,30]
[377691199,1754491883122,-292.9962021,0.00037828,30]
[377691200,1754491883132,-579.0986033,0.00037828,30]
[377691201,1754491883141,-292.9962021,0.00037828,30]
[377691202,1754491883150,-579.0986033,0.00037828,30]
[377691203,1754491883160,-292.9962021,0.00037828,30]
[377691204,1754491883170,-579.0986033,0.00037828,30]
[377691205,1754491883180,-579.0986033,0.00037828,30]
[377691206,1754491883191,-292.9962021,0.00037828,30]
[377691207,1754491883201,-446.9794653,0.00037828,30]
[377691208,1754491883211,-292.9962021,0.00037828,30]
[377691209,1754491883225,-292.9962021,0.00037828,30]
[377691210,1754491883349,-160.3561046,0.00037831,30]
[377691211,1754491883360,-153.0,0.00037831,30]
[377691212,1754491883370,-401.2236642,0.00037831,30]
[377691213,1754491883380,-1158.1972066,0.00037831,30]
[377691214,1754491883390,-153.0,0.00037831,30]
[377691215,1754491883399,-292.9962021,0.00037831,30]
[377691216,1754491883409,-292.9962021,0.00037831,30]
[377691217,1754491883419,-579.0986033,0.00037831,30]
[377691218,1754491883428,-160.3561046,0.00037831,30]
[377691219,1754491883438,-160.3561046,0.00037831,30]
[377691220,1754491883447,-292.9962021,0.00037831,30]
[377691221,1754491883457,-579.0986033,0.00037831,30]
[377691222,1754491883467,-153.0,0.00037831,30]
[377691223,1754491883476,-160.3561046,0.00037831,30]
[377691224,1754491883485,-579.0986033,0.00037831,30]
[377691225,1754491883494,-292.9962021,0.00037831,30]
[377691226,1754491883503,-160.3561046,0.00037831,30]
[377691227,1754491883513,-292.9962021,0.00037831,30]
[377691228,1754491883523,-579.0986033,0.00037831,30]
[377691229,1754491883532,-153.0,0.00037831,30]
[377691230,1754491883542,-585.9924042,0.00037831,30]
[377691231,1754491883551,-323.9433008,0.00037831,30]
[377691232,1754491883560,-579.0986033,0.00037831,30]
[377691233,1754491883570,-153.0,0.00037831,30]
[377691234,1754491883579,-153.0,0.00037831,30]
[377691235,1754491883590,-153.0,0.00037831,30]
[377691236,1754491883600,-153.0,0.00037831,30]
[377691237,1754491883610,-218.67,0.00037835,60]
[377691238,1754491883621,-218.67,0.00037935,60]
[377691239,1754491883630,-200.0,0.00038,14]
[377691240,1754491883640,-400.0,0.00038,120]
[377691241,1754491883649,-3798.13,0.00038,14]
[377691242,1754491883659,-500.0,0.00038027,16]
[377691243,1754491883669,-218.67,0.00038035,60]
[377691244,1754491883678,-800.0,0.00038077,7]
[377691245,1754491883688,-153.0,0.000381,120]
[377691246,1754491883698,-218.67,0.00038135,60]
[377691247,1754491883708,-971.0,0.00038137,2]
[377691248,1754491883717,-636.0,0.00038137,2]
[377691249,1754491883727,-2148.0,0.00038137,2]
[377691250,1754491883736,-800.0,0.00038166,7]
[377691251,1754491883746,-151.0,0.00038194,2]
[377691252,1754491883756,-218.67,0.00038235,60]
[377691253,1754491883765,-757.55419669,0.00038303,5]
[377691254,1754491883781,-855.44580331,0.00038303,5]
[377691255,1754491883791,-218.67,0.00038335,60]
[377691256,1754491883800,-500.0,0.00038356,120]
[377691257,1754491883810,-600.0,0.00038386,7]
[377691258,1754491883820,-218.67,0.00038435,120]
[377691259,1754491883830,-600.0,0.00038447,7]
[377691260,1754491883839,-218.67,0.00038535,120]
[377691261,1754491883848,-191.723131,0.00038537,2]
[377691262,1754491883858,-800.0,0.0003855,7]
[377691263,1754491883870,-800.0,0.00038571,7]
[377691264,1754491883879,-500.0,0.00038575,17]
[377691265,1754491883889,-500.0,0.00038583,5]
[377691266,1754491883899,-4690.4,0.0003863,120]
[377691267,1754491883908,-218.67,0.00038635,120]
[377691268,1754491883918,-155.3413688,0.0003865,30]
[377691269,1754491883928,-292.9962021,0.0003865,30]
[377691270,1754491883938,-223.4204931,0.0003865,30]
[377691271,1754491883947,-153.0,0.00038653,30]
[377691272,1754491883956,-153.0,0.00038653,30]
[377691273,1754491883965,-153.0,0.00038653,30]
[377691274,1754491883976,-218.67,0.00038735,120]
[377691275,1754491883990,-718.54665482,0.00038765,32]
[377691276,1754491884000,-218.67,0.00038835,120]
[377691277,1754491884010,-151.13033099,0.00038845,30]
[377691278,1754491884019,-151.13033099,0.00038845,30]
[377691279,1754491884030,-151.13033099,0.00038845,30]
[377691280,1754491884039,-151.13033099,0.00038845,30]
[377691281,1754491884049,-151.13033099,0.00038845,30]
[377691282,1754491884059,-151.13033099,0.00038845,30]
[377691283,1754491884069,-151.13033099,0.00038845,30]
[377691284,1754491884079,-151.13033099,0.00038845,30]
[377691285,1754491884089,-151.13033099,0.00038845,30]
[377691286,1754491884098,-151.13033102,0.00038845,30]
[377691287,1754491884108,-600.0,0.00038847,7]
[377691288,1754491884120,-218.67,0.00038935,120]
[377691289,1754491884130,-200.0,0.00039,14]
[377691290,1754491884139,-9078.83,0.00039,14]
[377691291,1754491884149,-219.46,0.00039035,120]
[377691292,1754491884159,-800.0,0.0003908,7]
[377691293,1754491884169,-500.0,0.00039123,18]
[377691294,1754491884179,-200.0,0.00039158,120]
[377691295,1754491884189,-483.04,0.00039299,2]
[377691296,1754491884199,-483.04,0.00039299,2]
[377691297,1754491884210,-483.04,0.00039299,2]
[377691298,1754491884221,-483.04,0.00039299,2]
[377691299,1754491884231,-483.04,0.00039299,2]
[377691300,1754491884240,-483.04,0.00039299,2]
[377691301,1754491884249,-483.04,0.00039299,2]
[377691302,1754491884258,-483.04,0.00039299,2]
[377691303,1754491884268,-483.04,0.00039299,2]
[377691304,1754491884277,-483.04,0.00039299,2]
[377691305,1754491884287,-153.0,0.000393,120]
[377691306,1754491884296,-4690.4,0.00039452,120]
[377691307,1754491884307,-151.0,0.00039563,2]
[377691308,1754491884316,-218.7215,0.000396,120]
[377691309,1754491884325,-200.0,0.000396,120]
[377691310,1754491884334,-723.36132239,0.00039601,7]
[377691311,1754491884344,-186.55844,0.00039654,2]
[377691312,1754491884353,-500.0,0.00039671,19]
[377691313,1754491884363,-1660.3,0.00039692,30]
[377691314,1754491884373,-509.03203277,0.000397,120]
[377691315,1754491884383,-718.54665482,0.00039707,34]
[377691316,1754491884393,-500.0,0.00039726,120]
[377691317,1754491884403,-200.0,0.00039736,120]
[377691318,1754491884413,-200.0,0.00039974,120]
[377691319,1754491884423,-340.11298506,0.00039999,31]
[377691320,1754491884434,-500.0,0.00039999,31]
[377691321,1754491884444,-390.69728431,0.00039999,31]
[377691322,1754491884454,-200.0,0.0004,14]
[377691323,1754491884464,-500.0,0.0004,120]
[377691324,1754491884473,-500.0,0.0004,120]
[377691325,1754491884483,-500.0,0.0004,2]
[377691326,1754491884492,-212.71772597,0.0004,120]
[377691327,1754491884502,-619.93128485,0.0004,30]
[377691328,1754491884511,-204.16929014,0.0004,120]
[377691329,1754491884520,-257.06580154,0.0004,120]
[377691330,1754491884529,-47441.00941917,0.0004,120]
[377691331,1754491885386,-151.0,0.00025873,2]
[377691332,1754491885395,-151.0,0.00025873,2]
[377691333,1754491885405,-27.413144,0.00026302,2]
[377691334,1754491885416,-572.586856,0.00026302,2]
[377691335,1754491885425,-600.0,0.00026302,2]
[377691336,1754491885435,-600.0,0.00026302,2]
[377691337,1754491885444,-2243.32983658,0.00027242,2]
[377691338,1754491885453,-600.0,0.00028706,2]
[377691339,1754491885463,-1583.93,0.00032254,120]
[377691340,1754491885472,-1583.93,0.00032254,120]
[377691341,1754491885482,-719.6,0.00032254,120]
[377691342,1754491885491,-1583.93,0.00032254,120]
[377691343,1754491885501,-719.6,0.00032254,120]
[377691344,1754491885510,-1583.93,0.00032254,120]
[377691345,1754491885519,-719.6,0.00032254,120]
[377691346,1754491885528,-1583.93,0.00032254,120]
[377691347,1754491885537,-719.6,0.00032254,120]
[377691348,1754491885546,-719.6,0.00032254,120]
[377691349,1754491885555,-719.6,0.00032254,120]
[377691350,1754491885564,-719.6,0.00032254,120]
[377691351,1754491885574,-719.6,0.00032254,120]
[377691352,1754491885583,-150.0,0.00035137,2]
[377691353,1754491885592,-292.9962021,0.00037828,30]
[377691354,1754491885602,-150.0,0.00038137,2]
[377691355,1754491885612,-9827.04170513,0.0004,120]
[377691356,1754491886292,1000.0,0.00024758,2]
[377691358,1754491984907,194.785626,0.00024776,2]
[377691359,1754492108107,164.610388,0.00013699,2]
[377691360,1754492108318,164.610388,0.00021404,2]
[377691362,1754492194018,380.0,0.00024658,2]
[377691363,1754492227864,95663.4342146,0.000301,120]
[377691364,1754492236511,247.38,0.00030137,120]
[377691365,1754492329783,345.78,0.00030136,120]
[377691366,1754492330162,300.0,0.0003013,120]
[377691367,1754492365494,502.0,0.00030136,120]
[377691368,1754492376303,353.0,0.0003013,120]
[377691369,1754492423966,5651.82764048,0.00024602,2]
[377691370,1754492423993,10000.0,0.00024602,2]
[377691371,1754492424018,9248.17235952,0.00024602,2]
[377691372,1754492500246,735.6,0.00030137,120]
[377691373,1754492549548,300.0,0.0003,120]
[377691374,1754492581682,600.0,0.0003,120]
[377691375,1754492594280,300.0,0.0003,120]
[377691376,1754492675060,167.971719,0.0002453,2]
[377691377,1754492754506,-498.8,0.00025205,7]
[377691378,1754492754536,-1198.53165074,0.00025367,3]
[377691379,1754492833086,-12.77121431,0.00025367,3]
[377691380,1754492833108,-195.1616987,0.000254,2]
[377691381,1754492833131,-195.1616987,0.00025467,2]
[377691382,1754492833151,-179.65122183,0.00025468,2]
[377691383,1754492833174,-136.72561993,0.00025565,2]
[377691384,1754492836109,-163.27438007,0.00025565,2]
[377691385,1754492836133,-300.0,0.00025565,2]
[377691386,1754492836156,-100.18597926,0.00025566,2]
[377691387,1754492836197,-250.93708414,0.00025566,2]
[377691388,1754492836220,-500.0,0.00025566,2]
[377691389,1754492836243,-500.0,0.00025566,2]
[377691390,1754492836267,-500.0,0.00025566,2]
[377691391,1754492836289,-500.0,0.00025566,2]
[377691392,1754492836311,-214.94450273,0.00025566,2]
[377691393,1754492836333,-511.85193032,0.00025566,2]
[377691394,1754492836356,-500.0,0.00025566,2]
[377691395,1754492836379,-500.0,0.00025566,2]
[377691396,1754492836401,-500.0,0.00025566,2]
[377691397,1754492836425,-500.0,0.00025566,2]
[377691398,1754492836447,-500.0,0.00025566,2]
[377691399,1754492836468,-500.0,0.00025566,2]
[377691400,1754492836490,-500.0,0.00025566,2]
[377691401,1754492836511,-500.0,0.00025566,2]
[377691402,1754492836532,-500.0,0.00025566,2]
[377691403,1754492836553,-419.67774721,0.00025566,2]
[377691404,1754492836575,-500.0,0.00025566,2]
[377691405,1754492836597,-500.0,0.00025566,2]
[377691406,1754492836618,-500.0,0.00025566,2]
[377691407,1754492836644,-500.0,0.00025566,2]
[377691408,1754492836665,-263.7511017,0.00025566,2]
[377691409,1754492836686,-545.21715541,0.00025566,2]
[377691410,1754492836708,-500.0,0.00025566,2]
[377691411,1754492836729,-288.5191533,0.00025566,2]
[377691412,1754492836751,-500.0,0.00025566,2]
[377691413,1754492836772,-308.13735957,0.00025566,2]
[377691414,1754492836793,-500.0,0.00025566,2]
[377691415,1754492836815,-500.0,0.00025566,2]
[377691416,1754492836838,-500.0,0.00025566,2]
[377691417,1754492836860,-500.0,0.00025566,2]
[377691418,1754492836882,-500.0,0.00025566,2]
[377691419,1754492836903,-353.98298262,0.00025566,2]
[377691420,1754492836923,-500.0,0.00025566,2]
[377691421,1754492836944,-500.0,0.00025566,2]
[377691422,1754492836964,-500.0,0.00025566,2]
[377691423,1754492836986,-500.0,0.00025566,2]
[377691424,1754492837007,-500.0,0.00025566,2]